bitfinex-derivatives/quotes_BTCF0:USTF0_20241023
["timestamp","ask_amount","ask_price","bid_price","bid_amount"]
[1729668145616,0.059934,67007.0,67006.0,0.0004]
[1729668146622,0.868454,67007.0,67006.0,0.0004]
[1729668148821,0.89494452,67007.0,67006.0,0.0004]
[1729668150923,0.53414452,67007.0,67006.0,0.0004]
[1729668151428,0.02669052,67007.0,67006.0,0.0004]
[1729668151725,0.02669052,67007.0,67006.0,0.060134]
[1729668156220,0.02669052,67007.0,67006.0,0.420934]
[1729668156518,0.0002,67007.0,67006.0,0.420934]
[1729668161639,0.0002,67007.0,67006.0,0.489034]
[1729668163231,0.0002,67007.0,67006.0,0.54861342]
[1729668164639,0.0002,67007.0,67006.0,0.65597317]
[1729668168234,0.0002,67007.0,67006.0,0.58147894]
[1729668169041,0.0004,67013.0,67006.0,1.19919894]
[1729668169335,0.0002,67022.0,67021.0,0.059721]
[1729668169640,0.0004,67022.0,67021.0,0.48011991]
[1729668170231,0.0004,67022.0,67021.0,0.420521]
[1729668173149,0.0004,67022.0,67021.0,0.487921]
[1729668175837,0.0004,67022.0,67021.0,0.54751991]
[1729668176439,0.0004,67022.0,67021.0,0.54743967]
[1729668178237,0.0004,67022.0,67021.0,0.487921]
[1729668179450,0.0004,67022.0,67021.0,0.54744364]
[1729668179655,0.0004,67022.0,67021.0,0.487921]
[1729668180250,0.0004,67022.0,67021.0,0.597921]
[1729668182155,0.0004,67022.0,67021.0,0.530521]
[1729668188260,0.0002,67022.0,67021.0,0.530521]
[1729668189960,0.00280001,67031.0,67030.0,0.059713]
[1729668190262,0.00280001,67031.0,67030.0,0.169713]
[1729668190263,0.00300001,67031.0,67030.0,0.169713]
[1729668191964,0.03025606,67031.0,67030.0,0.169713]
[1729668192165,0.00300001,67031.0,67030.0,0.169713]
[1729668192365,0.00300001,67031.0,67030.0,0.279713]
[1729668192866,0.0044,67034.0,67033.0,0.05971]
[1729668193164,0.0044,67034.0,67033.0,0.16971]
[1729668193165,0.0046,67034.0,67033.0,0.16971]
[1729668195572,0.06431,67034.0,67033.0,0.16971]
[1729668196165,0.05971,67033.0,67030.0,0.3608]
[1729668196366,0.0002,67031.0,67030.0,0.3612]
[1729668196866,0.0002,67031.0,67030.0,0.420913]
[1729668197974,0.0002,67031.0,67030.0,0.3612]
[1729668198271,0.059912,67031.0,67030.0,0.3612]
[1729668199887,0.08650145,67031.0,67030.0,0.3612]
[1729668200976,0.059718,67025.0,67024.0,0.3608]
[1729668201170,0.059918,67025.0,67024.0,0.3608]
[1729668201372,0.059918,67025.0,67024.0,0.3612]
[1729668201970,0.128218,67025.0,67024.0,0.3612]
[1729668202477,0.575818,67025.0,67024.0,0.0004]
[1729668202671,0.059722,67020.0,67019.0,0.00223769]
[1729668202872,0.229922,67020.0,67019.0,0.00223769]
[1729668203064,0.229922,67020.0,67019.0,0.00263769]
[1729668206781,0.25746167,67020.0,67019.0,0.00263769]
[1729668208688,0.08746167,67020.0,67019.0,0.00263769]
[1729668210280,0.44826167,67020.0,67019.0,0.00263769]
[1729668213282,0.08746167,67020.0,67019.0,0.00263769]
[1729668214682,0.02773967,67020.0,67019.0,0.00263769]
[1729668216295,0.02773967,67020.0,67019.0,0.06236069]
[1729668217184,0.0002,67020.0,67019.0,0.06236069]
[1729668220694,0.229922,67020.0,67019.0,0.00263769]
[1729668221293,0.059922,67020.0,67019.0,0.00263769]
[1729668222184,0.229922,67020.0,67019.0,0.00263769]
[1729668222384,0.169922,67020.0,67019.0,0.00263769]
[1729668222589,0.1102,67020.0,67009.0,0.42038771]
[1729668222795,0.0002,67010.0,67009.0,0.3612]
[1729668223488,0.059931,67010.0,67009.0,0.3612]
[1729668224601,0.059931,67010.0,67009.0,0.420932]
[1729668225185,0.059931,67010.0,67009.0,0.0004]
[1729668227695,0.53513988,67010.0,67006.0,0.0004]
[1729668227902,0.590734,67007.0,67006.0,0.0008]
[1729668228292,1.038454,67007.0,67006.0,0.0008]
[1729668229205,1.106954,67007.0,67006.0,0.0008]
[1729668231202,1.106954,67007.0,67002.0,0.0004]
[1729668231203,0.059737,67003.0,67002.0,0.0004]
[1729668231407,0.059737,67003.0,66998.0,0.00223865]
[1729668231408,0.059741,66999.0,66998.0,0.00223865]
[1729668231706,0.059741,66999.0,66998.0,0.00263865]
[1729668231707,0.336341,66999.0,66998.0,0.00263865]
[1729668232401,0.336341,66999.0,66998.0,0.0004]
[1729668233311,0.697141,66999.0,66998.0,0.0004]
[1729668233807,0.590741,66999.0,66998.0,0.0004]
[1729668234109,0.527141,66999.0,66998.0,0.0004]
[1729668236708,0.55463093,66999.0,66998.0,0.0004]
[1729668237107,0.36383093,66999.0,66998.0,0.0004]
[1729668238109,0.19383093,66999.0,66998.0,0.0004]
[1729668239610,0.08743093,66999.0,66998.0,0.0004]
[1729668239809,0.08743093,66999.0,66998.0,0.1704]
[1729668240001,0.08743093,66999.0,66998.0,0.0004]
[1729668241106,0.02768993,66999.0,66998.0,0.0004]
[1729668241305,0.02768993,66999.0,66998.0,0.1704]
[1729668242425,0.02768993,66999.0,66998.0,0.230142]
[1729668242721,0.0002,66999.0,66998.0,0.230142]
[1729668243603,0.0002,67007.0,67002.0,0.059738]
[1729668243806,0.0002,67007.0,67006.0,0.590534]
[1729668243807,0.0004,67007.0,67006.0,0.590534]
[1729668248114,0.0004,67007.0,67006.0,0.420534]
[1729668248309,0.060134,67007.0,67006.0,0.3608]
[1729668248911,0.060134,67007.0,67006.0,0.420534]
[1729668249313,0.0004,67007.0,67006.0,0.590534]
[1729668249513,0.0004,67007.0,67006.0,0.63514707]
[1729668249711,0.0004,67007.0,67006.0,0.590534]
[1729668249918,0.0004,67007.0,67006.0,0.63517193]
[1729668250223,0.060134,67007.0,67006.0,0.590534]
[1729668250413,0.060134,67007.0,67006.0,0.229734]
[1729668250613,0.060134,67007.0,67006.0,0.10438822]
[1729668251015,0.060134,67007.0,67006.0,0.10438738]
[1729668251326,0.060134,67007.0,67006.0,0.059734]
[1729668252221,0.060134,67007.0,67006.0,0.1043951]
[1729668252416,0.0004,67007.0,67006.0,0.229734]
[1729668252920,0.0004,67007.0,67006.0,0.28932171]
[1729668253121,0.0004,67007.0,67006.0,0.28928504]
[1729668253314,0.0004,67007.0,67006.0,0.28928943]
[1729668253715,0.0004,67007.0,67006.0,0.229734]
[1729668254519,0.060134,67007.0,67006.0,0.059734]
[1729668255720,0.060134,67007.0,67006.0,0.28928612]
[1729668255927,0.0004,67007.0,67006.0,0.28928612]
[1729668256122,0.0004,67007.0,67006.0,0.28928672]
[1729668256320,0.0004,67007.0,67006.0,0.229734]
[1729668256818,0.0004,67007.0,67006.0,0.28928182]
[1729668257618,0.060134,67007.0,67006.0,0.28928182]
[1729668257826,0.060134,67007.0,67006.0,0.11928182]
[1729668258326,0.060134,67007.0,67006.0,0.059734]
[1729668258718,0.060134,67007.0,67005.0,0.3608]
[1729668258719,0.0004,67007.0,67005.0,0.3608]
[1729668258925,0.059934,67006.0,67005.0,0.420535]
[1729668259224,0.059934,67006.0,67005.0,0.48048282]
[1729668259437,0.059934,67006.0,67005.0,0.420935]
[1729668259625,0.0002,67006.0,67005.0,0.48048282]
[1729668259828,0.0002,67006.0,67005.0,0.420935]
[1729668260925,0.0002,67006.0,67005.0,0.48047467]
[1729668261629,0.0002,67006.0,67005.0,0.420935]
[1729668261824,0.0002,67006.0,67005.0,0.48047688]
[1729668262332,0.0002,67006.0,67005.0,0.420935]
[1729668264329,0.0002,67006.0,67005.0,0.59050004]
[1729668264627,0.0002,67006.0,67005.0,0.59051336]
[1729668264831,0.0002,67006.0,67005.0,0.530935]
[1729668265334,0.0002,67006.0,67005.0,0.59051336]
[1729668265536,0.0002,67006.0,67005.0,0.530935]
[1729668266221,0.0002,67006.0,67005.0,0.59051336]
[1729668267239,0.0002,67006.0,67005.0,0.530935]
[1729668267626,0.0002,67006.0,67005.0,0.59056556]
[1729668267940,0.0002,67006.0,67005.0,0.530935]
[1729668268433,0.0002,67006.0,67005.0,0.59056556]
[1729668269231,0.0002,67006.0,67005.0,0.530935]
[1729668270148,0.0002,67006.0,67005.0,0.69872981]
[1729668270336,0.0002,67006.0,67005.0,0.69870031]
[1729668270633,0.0002,67006.0,67005.0,0.62421567]
[1729668271939,0.0002,67006.0,67005.0,0.73544789]
[1729668272135,0.0002,67006.0,67005.0,0.73548584]
[1729668273539,0.0002,67006.0,67005.0,0.62425362]
[1729668273944,0.0002,67006.0,67005.0,0.73558048]
[1729668274457,0.0002,67006.0,67005.0,0.62425362]
[1729668277736,0.0002,67006.0,67005.0,0.71386876]
[1729668278046,0.0002,67006.0,67005.0,0.62425362]
[1729668278344,0.059934,67006.0,67005.0,0.51425362]
[1729668278943,0.059934,67006.0,67005.0,0.420935]
[1729668279454,0.0002,67006.0,67005.0,0.530935]
[1729668279638,0.0002,67006.0,67005.0,0.62430621]
[1729668281840,0.059934,67006.0,67005.0,0.62430621]
[1729668282452,0.059934,67006.0,67005.0,0.62442242]
[1729668282748,0.059934,67006.0,67005.0,0.530935]
[1729668283338,0.059934,67006.0,67005.0,0.62447307]
[1729668283842,0.059934,67006.0,67005.0,0.530935]
[1729668284032,0.059934,67006.0,67005.0,0.60560885]
[1729668284434,0.059934,67006.0,67005.0,0.530935]
[1729668284853,0.132234,67006.0,67005.0,0.530935]
[1729668285148,0.132234,67006.0,67005.0,0.69912036]
[1729668285347,0.132234,67006.0,67005.0,0.60560885]
[1729668285539,0.132234,67006.0,67005.0,0.69910043]
[1729668285948,0.132234,67006.0,67005.0,0.60560585]
[1729668286141,0.132234,67006.0,67005.0,0.69905653]
[1729668286538,0.132234,67006.0,67005.0,0.530935]
[1729668287041,0.0725,67006.0,67005.0,0.62447857]
[1729668287242,0.132234,67006.0,67005.0,0.62447857]
[1729668290946,0.132234,67006.0,67005.0,0.62438816]
[1729668294046,0.132234,67006.0,67005.0,0.60560117]
[1729668294450,0.132234,67006.0,67005.0,0.530935]
[1729668296053,0.132234,67006.0,67005.0,0.60560117]
[1729668296257,0.132234,67006.0,67005.0,0.530935]
[1729668297954,0.132234,67006.0,67005.0,0.60560096]
[1729668298451,0.132234,67006.0,67005.0,0.69907839]
[1729668298651,0.132234,67006.0,67005.0,0.60559953]
[1729668298854,0.132234,67006.0,67005.0,0.60559796]
[1729668299247,0.132234,67006.0,67005.0,0.69909528]
[1729668299558,0.132234,67006.0,67005.0,0.60559796]
[1729668299753,0.132234,67006.0,67005.0,0.62442016]
[1729668299950,0.132234,67006.0,67005.0,0.530935]
[1729668300355,0.059934,67006.0,67005.0,0.6990392]
[1729668300661,0.059934,67006.0,67005.0,0.69904059]
[1729668300854,0.059934,67006.0,67005.0,0.62437833]
[1729668302252,0.0002,67010.0,67009.0,0.059731]
[1729668302253,0.059732,67010.0,67009.0,0.059731]
[1729668302457,0.059728,67014.0,67011.0,0.05973]
[1729668302658,0.0002,67012.0,67011.0,0.15318389]
[1729668302852,0.0002,67012.0,67011.0,0.51398389]
[1729668303553,0.0002,67012.0,67011.0,0.51374887]
[1729668308056,0.0002,67012.0,67011.0,0.51396652]
[1729668308257,0.02646774,67014.0,67011.0,0.56423652]
[1729668308451,0.0002,67014.0,67013.0,0.059728]
[1729668308650,0.0002,67014.0,67013.0,0.22326452]
[1729668309260,0.0002,67014.0,67013.0,0.129828]
[1729668312560,0.0002,67014.0,67013.0,0.059728]
[1729668312760,0.059927,67014.0,67013.0,0.059728]
[1729668312960,0.059927,67014.0,67011.0,0.36156]
[1729668312961,0.059729,67012.0,67011.0,0.3608]
[1729668313265,0.059929,67012.0,67011.0,0.3612]
[1729668314849,0.059929,67012.0,67011.0,0.0004]
[1729668315053,0.617609,67012.0,67006.0,0.04475835]
[1729668315250,0.059734,67006.0,67002.0,0.04475835]
[1729668315553,0.169934,67006.0,67005.0,0.0008]
[1729668316868,0.059934,67006.0,67005.0,0.0008]
[1729668317667,0.02665169,67006.0,67005.0,0.17047145]
[1729668317863,0.02665169,67006.0,67005.0,0.170535]
[1729668319258,0.02665169,67006.0,67005.0,0.060535]
[1729668319475,0.08638569,67006.0,67005.0,0.06045807]
[1729668319764,0.08638569,67006.0,67005.0,0.0008]
[1729668320568,0.08638569,67006.0,67005.0,0.04553978]
[1729668320764,0.15868569,67006.0,67005.0,0.04553978]
[1729668322070,0.60640569,67006.0,66999.0,0.03724704]
[1729668322269,0.059741,66999.0,66998.0,0.0004]
[1729668322465,0.129341,66999.0,66998.0,0.0008]
[1729668322670,0.198541,66999.0,66998.0,0.0008]
[1729668324468,0.129141,66999.0,66998.0,0.0008]
[1729668325970,0.0002,66999.0,66998.0,0.12020007]
[1729668326170,0.0002,66999.0,66998.0,0.060542]
[1729668326770,0.0002,66999.0,66998.0,0.12012076]
[1729668326995,0.0002,66999.0,66998.0,0.060542]
[1729668332670,0.0002,66999.0,66998.0,0.12011938]
[1729668333584,0.0002,66999.0,66998.0,0.060542]
[1729668335877,0.0002,67000.0,66998.0,0.0008]
[1729668336078,0.0002,67006.0,67005.0,0.059735]
[1729668336285,0.0004,67006.0,67005.0,0.420535]
[1729668339479,0.0004,67006.0,67005.0,0.51377843]
[1729668341284,0.0004,67006.0,67005.0,0.49503942]
[1729668341473,0.0004,67006.0,67005.0,0.58839581]
[1729668341777,0.060134,67006.0,67005.0,0.43530442]
[1729668342378,0.060134,67006.0,67005.0,0.52868624]
[1729668344380,0.060134,67006.0,67005.0,0.43530442]
[1729668344586,0.060134,67006.0,67005.0,0.52862833]
[1729668345082,0.060134,67006.0,67005.0,0.3608]
[1729668345285,0.060134,67006.0,67005.0,0.42042802]
[1729668345583,0.060134,67006.0,67005.0,0.3608]
[1729668345584,0.131634,67006.0,67005.0,0.3608]
[1729668345986,0.059735,67005.0,67004.0,0.05962802]
[1729668346186,0.059739,67001.0,67000.0,0.05962802]
[1729668346480,0.059739,67001.0,67000.0,0.0004]
[1729668346481,0.229939,67001.0,67000.0,0.0004]
[1729668349085,0.25671967,67001.0,67000.0,0.0004]
[1729668351485,0.059741,66999.0,66998.0,0.0008]
[1729668351693,0.059941,66999.0,66998.0,0.0012]
[1729668355095,0.059941,66999.0,66991.0,0.0004]
[1729668355096,0.059747,66992.0,66991.0,0.0004]
[1729668355295,0.590547,66992.0,66991.0,0.0008]
[1729668358695,0.61799926,66992.0,66991.0,0.0008]
[1729668362303,0.38825226,66992.0,66991.0,0.0008]
[1729668362498,0.38825226,66992.0,66991.0,0.060548]
[1729668365105,0.44799926,66992.0,66991.0,0.060548]
[1729668368411,0.55799926,66992.0,66991.0,0.0008]
[1729668368597,0.66799926,66992.0,66991.0,0.0008]
[1729668368803,0.55799926,66992.0,66991.0,0.0008]
[1729668370803,0.66799926,66992.0,66991.0,0.0008]
[1729668371004,0.059755,66983.0,66982.0,0.3608]
[1729668371204,0.169755,66983.0,66982.0,0.3612]
[1729668374511,0.169755,66983.0,66982.0,0.42082802]
[1729668374901,0.169755,66983.0,66982.0,0.06002802]
[1729668375103,0.169755,66983.0,66982.0,0.0004]
[1729668375300,0.059755,66983.0,66982.0,0.0004]
[1729668375612,0.059753,66985.0,66984.0,0.059753]
[1729668375909,0.059953,66985.0,66984.0,0.059753]
[1729668376105,0.059755,66983.0,66982.0,0.0004]
[1729668376303,0.169755,66983.0,66982.0,0.0008]
[1729668378512,0.19627893,66983.0,66982.0,0.0008]
[1729668383011,0.08627893,66983.0,66982.0,0.0008]
[1729668384508,0.02652393,66983.0,66982.0,0.170556]
[1729668384711,0.059746,66993.0,66989.0,0.059749]
[1729668385013,0.059746,66993.0,66992.0,0.11]
[1729668385209,0.059749,66991.0,66989.0,0.169749]
[1729668385413,0.059749,66991.0,66989.0,0.170149]
[1729668385718,0.059749,66991.0,66989.0,0.1104]
[1729668385908,0.3608,67003.0,66992.0,0.059747]
[1729668386108,0.0004,67006.0,66992.0,0.059747]
[1729668386109,0.0004,66999.0,66998.0,0.059742]
[1729668388011,0.0004,66999.0,66998.0,0.420542]
[1729668388313,0.0004,66999.0,66998.0,0.590542]
[1729668396114,0.0004,66999.0,66998.0,0.420542]
[1729668397420,0.060141,66999.0,66998.0,0.420542]
[1729668398229,0.060141,66999.0,66998.0,0.3608]
[1729668399630,0.230141,66999.0,66998.0,0.3608]
[1729668401926,0.230141,66999.0,66989.0,0.0004]
[1729668401927,0.059749,66990.0,66989.0,0.0004]
[1729668402126,0.059749,66990.0,66989.0,0.0008]
[1729668402624,0.0870271,66990.0,66989.0,0.0008]
[1729668406032,0.0870271,66990.0,66989.0,0.06055]
[1729668407729,0.0272781,66990.0,66989.0,0.06055]
[1729668407936,0.059744,66996.0,66989.0,0.0008]
[1729668408134,0.059944,66996.0,66995.0,0.229744]
[1729668408431,0.0002,66996.0,66995.0,0.590544]
[1729668408728,0.0002,66996.0,66995.0,0.5308]
[1729668409128,0.0002,67001.0,66995.0,1.05298218]
[1729668409334,0.0004,67001.0,67000.0,0.22974]
[1729668412331,0.0004,67001.0,67000.0,0.30412218]
[1729668412530,0.0004,67001.0,67000.0,0.39759621]
[1729668413231,0.0004,67001.0,67000.0,0.26347403]
[1729668414233,0.0004,67001.0,67000.0,0.26348831]
[1729668415735,0.0004,67001.0,67000.0,0.26352101]
[1729668415933,0.0004,67001.0,67000.0,0.17]
[1729668416728,0.060139,67001.0,67000.0,0.17]
[1729668417225,0.060139,67001.0,66995.0,0.78208091]
[1729668417226,0.059742,66997.0,66995.0,0.78208091]
[1729668417426,0.0004,67001.0,66995.0,0.78160091]
[1729668417427,0.059943,66996.0,66995.0,0.78160091]
[1729668417625,0.059943,66996.0,66995.0,0.722]
[1729668423338,0.059943,66996.0,66995.0,0.0004]
[1729668423641,0.059943,66996.0,66995.0,0.3612]
[1729668423938,0.059943,66996.0,66995.0,0.4550961]
[1729668424744,0.059943,66996.0,66995.0,0.45511994]
[1729668425049,0.059943,66996.0,66995.0,0.52964693]
[1729668426050,0.059943,66996.0,66995.0,0.3612]
[1729668426538,0.229943,66996.0,66995.0,0.0004]
[1729668426743,0.059943,66996.0,66995.0,0.0004]
[1729668427242,0.059943,66996.0,66995.0,0.06002839]
[1729668428330,0.059943,66996.0,66995.0,0.0004]
[1729668429332,0.059943,66996.0,66995.0,0.3612]
[1729668430635,0.059943,66996.0,66995.0,0.42082756]
[1729668430839,0.059943,66996.0,66995.0,0.3612]
[1729668432945,0.059943,66996.0,66995.0,0.0004]
[1729668434154,0.229943,66996.0,66995.0,0.0004]
[1729668434849,0.229943,66996.0,66989.0,0.06044568]
[1729668434850,0.059748,66991.0,66990.0,0.05964568]
[1729668435035,0.059749,66990.0,66989.0,0.06044568]
[1729668435237,0.059749,66990.0,66989.0,0.06084568]
[1729668435439,0.059749,66990.0,66989.0,0.0012]
[1729668438346,0.129649,66990.0,66989.0,0.0012]
[1729668439739,0.15672986,66990.0,66989.0,0.0012]
[1729668440339,0.22382986,66990.0,66989.0,0.0012]
[1729668442256,0.33382986,66990.0,66989.0,0.0012]
[1729668442449,0.22382986,66990.0,66989.0,0.0012]
[1729668442659,0.33382986,66990.0,66989.0,0.0012]
[1729668442958,0.15392986,66990.0,66989.0,0.1112]
[1729668443456,0.15392986,66990.0,66989.0,0.0012]
[1729668444255,0.26392986,66990.0,66989.0,0.0012]
[1729668448144,0.26392986,66990.0,66989.0,0.04592252]
[1729668448348,0.26392986,66990.0,66989.0,0.0012]
[1729668449758,0.26392986,66990.0,66989.0,0.04592279]
[1729668449958,0.26392986,66990.0,66989.0,0.0012]
[1729668450355,0.26392986,66990.0,66989.0,0.04592279]
[1729668452863,0.26392986,66990.0,66989.0,0.362]
[1729668453071,0.26392986,66990.0,66989.0,0.0012]
[1729668455469,0.15392986,66990.0,66989.0,0.0012]
[1729668456068,0.08682986,66990.0,66989.0,0.0012]
[1729668459572,0.19682986,66990.0,66989.0,0.06084568]
[1729668460665,0.19682986,66990.0,66989.0,0.0012]
[1729668460974,0.19682986,66990.0,66989.0,0.06084568]
[1729668461174,0.19682986,66990.0,66989.0,0.0012]
[1729668463572,0.19682986,66990.0,66989.0,0.17028647]
[1729668464575,0.19682986,66990.0,66989.0,0.17031105]
[1729668464970,0.19682986,66990.0,66989.0,0.17046173]
[1729668465374,0.19682986,66990.0,66989.0,0.07591831]
[1729668466870,0.08682986,66990.0,66989.0,0.07591831]
[1729668467975,0.08682986,66990.0,66989.0,0.1705072]
[1729668468279,0.08682986,66990.0,66989.0,0.0012]
[1729668469681,0.08682986,66990.0,66989.0,0.1112]
[1729668469876,0.08682986,66990.0,66989.0,0.0012]
[1729668476377,0.08682986,66990.0,66989.0,0.17060076]
[1729668478579,0.08682986,66990.0,66989.0,0.17060333]
[1729668478975,0.08682986,66990.0,66989.0,0.17060086]
[1729668480080,0.08682986,66990.0,66989.0,0.20588255]
[1729668480781,0.059747,66993.0,66989.0,0.62643255]
[1729668481084,0.059747,66993.0,66992.0,0.11]
[1729668481085,0.059947,66993.0,66992.0,0.11]
[1729668481381,0.08747029,66993.0,66992.0,0.09468255]
[1729668481683,0.08747029,66993.0,66992.0,0.16938893]
[1729668481888,0.08747029,66993.0,66992.0,0.09468255]
[1729668482076,0.08747029,66993.0,66992.0,0.09447744]
[1729668482778,0.08747029,66993.0,66992.0,0.20447744]
[1729668483290,0.08747029,66993.0,66992.0,0.169747]
[1729668484686,0.08747029,66993.0,66992.0,0.11]
[1729668487392,0.059749,66990.0,66989.0,0.54757908]
[1729668487689,0.059749,66990.0,66989.0,0.54669908]
[1729668487890,0.059749,66990.0,66989.0,0.4724]
[1729668491078,0.059749,66990.0,66989.0,0.3624]
[1729668491278,0.059749,66990.0,66989.0,0.45711968]
[1729668492092,0.059749,66990.0,66989.0,0.56711968]
[1729668492801,0.059749,66990.0,66989.0,0.45711968]
[1729668496010,0.059749,66990.0,66989.0,0.56711968]
[1729668496811,0.059749,66990.0,66989.0,0.20631968]
[1729668500902,0.059749,66990.0,66989.0,0.20640753]
[1729668505414,0.059749,66990.0,66989.0,0.1116]
[1729668505616,0.059749,66990.0,66989.0,0.20643768]
[1729668506307,0.059749,66990.0,66989.0,0.1116]
[1729668508300,0.059749,66990.0,66989.0,0.17135]
[1729668508513,0.059749,66990.0,66989.0,0.24604541]
[1729668508913,0.059749,66990.0,66989.0,0.17135]
[1729668509113,0.059749,66990.0,66989.0,0.24604541]
[1729668509500,0.059749,66990.0,66989.0,0.34090791]
[1729668511014,0.02772329,66993.0,66989.0,0.28115791]
[1729668511212,0.02772329,66993.0,66991.0,0.059748]
[1729668511409,0.02792329,66993.0,66991.0,0.059748]
[1729668511806,0.02792329,66993.0,66992.0,0.11]
[1729668512006,0.08766929,66993.0,66992.0,0.11]
[1729668513409,0.08766929,66993.0,66992.0,0.20480613]
[1729668514111,0.08766929,66993.0,66992.0,0.27952506]
[1729668515011,0.08766929,66993.0,66992.0,0.20486407]
[1729668515718,0.08766929,66993.0,66992.0,0.09486407]
[1729668520318,0.08766929,66993.0,66992.0,0.15461107]
[1729668524521,0.02792329,66993.0,66992.0,0.15461107]
[1729668524922,0.08766929,66993.0,66992.0,0.15461107]
[1729668525516,0.08766929,66993.0,66992.0,0.09486407]
[1729668526623,0.02792329,66993.0,66992.0,0.15461107]
[1729668527025,0.0004,66993.0,66992.0,0.26461107]
[1729668527223,0.0004,66993.0,66992.0,0.37712145]
[1729668527518,0.0004,66993.0,66992.0,0.26461107]
[1729668528929,0.0004,66993.0,66992.0,0.26405441]
[1729668531329,0.0002,66996.0,66995.0,0.059744]
[1729668531534,0.0004,66996.0,66995.0,0.60517853]
[1729668532131,0.0004,66996.0,66995.0,0.530544]
[1729668533235,0.0004,66996.0,66995.0,0.60517853]
[1729668533733,0.0004,66996.0,66995.0,0.530544]
[1729668534535,0.059745,66994.0,66993.0,0.07463453]
[1729668534726,0.059746,66993.0,66991.0,0.059747]
[1729668534926,0.059746,66993.0,66992.0,0.11]
[1729668535327,0.059746,66993.0,66992.0,0.169747]
[1729668536528,0.059746,66993.0,66992.0,0.15441641]
[1729668536731,0.059746,66993.0,66992.0,0.26441641]
[1729668541837,0.059746,66993.0,66992.0,0.26439653]
[1729668542641,0.059747,66992.0,66991.0,0.0004]
[1729668542835,0.169747,66992.0,66991.0,0.0004]
[1729668543148,0.169747,66992.0,66991.0,0.0008]
[1729668543644,0.169747,66992.0,66991.0,0.06050441]
[1729668543827,0.169747,66992.0,66991.0,0.0008]
[1729668544541,0.169747,66992.0,66991.0,0.06050441]
[1729668545344,0.169747,66992.0,66991.0,0.0008]
[1729668546041,0.059747,66992.0,66991.0,0.0008]
[1729668548243,0.08695956,66992.0,66991.0,0.0008]
[1729668548949,0.08695956,66992.0,66991.0,0.06050441]
[1729668549343,0.08695956,66992.0,66991.0,0.0008]
[1729668550753,0.19695956,66992.0,66991.0,0.0008]
[1729668551135,0.19695956,66992.0,66991.0,0.04557129]
[1729668551455,0.19695956,66992.0,66991.0,0.0008]
[1729668552437,0.19695956,66992.0,66991.0,0.04555932]
[1729668554354,0.19695956,66992.0,66991.0,0.0008]
[1729668556459,0.29959956,66992.0,66991.0,0.0008]
[1729668559269,0.66039956,66992.0,66991.0,0.0008]
[1729668560367,0.55775956,66992.0,66991.0,0.0008]
[1729668560569,0.66043956,66992.0,66991.0,0.0008]
[1729668562071,0.44775956,66992.0,66991.0,0.0008]
[1729668562467,0.44775956,66992.0,66991.0,0.04555932]
[1729668563673,0.44775956,66992.0,66991.0,0.0008]
[1729668563978,0.44775956,66992.0,66991.0,0.04556456]
[1729668564482,0.44775956,66992.0,66991.0,0.0008]
[1729668565972,0.55775956,66992.0,66991.0,0.0008]
[1729668566775,0.55775956,66992.0,66991.0,0.0605079]
[1729668566971,0.55775956,66992.0,66991.0,0.0008]
[1729668567971,0.55775956,66992.0,66991.0,0.0605079]
[1729668571181,0.55775956,66992.0,66991.0,0.0008]
[1729668571477,0.10288,66996.0,66991.0,0.20530689]
[1729668571478,0.0002,66996.0,66991.0,0.20530689]
[1729668571677,0.0002,66996.0,66995.0,0.420544]
[1729668571884,0.0004,66996.0,66995.0,0.6046375]
[1729668572271,0.0004,66996.0,66995.0,0.51505089]
[1729668573479,0.0004,66996.0,66995.0,0.420544]
[1729668574773,0.0004,66996.0,66995.0,0.483244]
[1729668577996,0.0004,66996.0,66995.0,0.48019281]
[1729668578987,0.0004,66996.0,66995.0,0.420544]
[1729668580183,0.0004,66996.0,66995.0,0.48019281]
[1729668580485,0.0004,66996.0,66995.0,0.420544]
[1729668583488,0.0004,66996.0,66995.0,0.530544]
[1729668595787,0.0004,66996.0,66995.0,0.169744]
[1729668595993,0.0004,66996.0,66995.0,0.530544]
[1729668596293,0.0004,66996.0,66995.0,0.60515116]
[1729668596704,0.0004,66996.0,66995.0,0.530544]
[1729668598989,0.060143,66996.0,66995.0,0.530544]
[1729668600402,0.060143,66996.0,66995.0,0.60515116]
[1729668600799,0.060143,66996.0,66995.0,0.530544]
[1729668601000,0.060143,66996.0,66995.0,0.3608]
[1729668601205,0.060143,66996.0,66991.0,0.06053981]
[1729668601206,0.868743,66996.0,66991.0,0.06053981]
[1729668601399,0.11,66994.0,66989.0,0.0016]
[1729668601595,0.169749,66990.0,66989.0,0.002]
[1729668603004,0.059749,66990.0,66989.0,0.112]
[1729668603508,0.059749,66990.0,66989.0,0.17175]
[1729668603704,0.059749,66990.0,66989.0,0.26565311]
[1729668604208,0.059746,66994.0,66993.0,0.059746]
[1729668604411,0.02680205,66996.0,66995.0,0.059744]
[1729668604632,0.02700205,66996.0,66995.0,0.15347074]
[1729668605111,0.0006,66996.0,66995.0,0.15347074]
[1729668605315,0.0006,66996.0,66995.0,0.24305735]
[1729668605505,0.0006,66996.0,66995.0,0.15347074]
[1729668609519,0.060343,66996.0,66995.0,0.15347074]
[1729668609807,0.060343,66996.0,66995.0,0.26347074]
[1729668612164,0.0006,66996.0,66995.0,0.26318819]
[1729668612414,0.0006,66996.0,66995.0,0.26321318]
[1729668612618,0.0006,66996.0,66995.0,0.24436249]
[1729668612914,0.0006,66996.0,66995.0,0.26320225]
[1729668613115,0.0006,66996.0,66995.0,0.24436044]
[1729668613616,0.0006,66996.0,66995.0,0.26320079]
[1729668613817,0.0006,66996.0,66995.0,0.39881704]
[1729668614004,0.0006,66996.0,66995.0,0.32420079]
[1729668615813,0.0006,66996.0,66995.0,0.35088846]
[1729668616219,0.0006,66996.0,66995.0,0.32420079]
[1729668616720,0.0006,66996.0,66995.0,0.39881256]
[1729668617122,0.0006,66996.0,66995.0,0.32420079]
[1729668617317,0.0006,66996.0,66995.0,0.3988111]